bitfinex/quotes_BTCUSD_20250515
["timestamp","ask_amount","ask_price","bid_price","bid_amount"]
[1747315713341,0.74469364,102590.0,102580.0,0.2675828]
[1747315714205,0.73494668,102590.0,102580.0,0.2675828]
[1747315714560,0.74469345,102590.0,102580.0,0.2675828]
[1747315714955,0.75444032,102590.0,102580.0,0.2675828]
[1747315717342,0.74469345,102590.0,102580.0,0.2675828]
[1747315717544,0.72839345,102590.0,102580.0,0.2675828]
[1747315717844,0.72839355,102590.0,102580.0,0.2675828]
[1747315718161,0.74429355,102590.0,102580.0,0.2675828]
[1747315719360,0.7248,102590.0,102580.0,0.2675828]
[1747315719591,0.73454677,102590.0,102580.0,0.2675828]
[1747315721706,0.6931,102590.0,102580.0,0.2675828]
[1747315722337,0.70284677,102590.0,102580.0,0.2675828]
[1747315722529,0.71854677,102590.0,102580.0,0.2675828]
[1747315724866,0.73494677,102590.0,102580.0,0.2675828]
[1747315725462,0.92989754,102590.0,102580.0,0.2675828]
[1747315725675,0.73494677,102590.0,102580.0,0.2675828]
[1747315726507,0.94939194,102590.0,102580.0,0.21071806]
[1747315726711,0.94939194,102590.0,102580.0,0.22046645]
[1747315727062,0.94939194,102590.0,102580.0,0.22046654]
[1747315727420,0.95913938,102590.0,102580.0,0.22046664]
[1747315727559,0.95913938,102590.0,102580.0,0.21071825]
[1747315727757,0.95913938,102590.0,102580.0,0.22046664]
[1747315727978,0.95913938,102590.0,102580.0,0.22046654]
[1747315728388,0.95913938,102590.0,102580.0,0.22046664]
[1747315728804,0.95913938,102590.0,102580.0,0.01574848]
[1747315728983,0.95913938,102590.0,102580.0,0.22046664]
[1747315730334,0.95913938,102590.0,102580.0,0.006]
[1747315730488,0.96888691,102590.0,102580.0,0.01574848]
[1747315730695,0.96888691,102590.0,102580.0,0.006]
[1747315731141,0.95914014,102590.0,102580.0,0.006]
[1747315732918,0.93964517,102590.0,102580.0,0.21071825]
[1747315733146,0.9493927,102590.0,102580.0,0.01574848]
[1747315733689,0.93964517,102590.0,102580.0,0.21071825]
[1747315733821,0.9493927,102590.0,102580.0,0.21071825]
[1747315734820,0.9493927,102590.0,102580.0,0.006]
[1747315735144,0.9493927,102590.0,102580.0,0.01574848]
[1747315735348,0.9493927,102590.0,102580.0,0.03976126]
[1747315735975,0.9493927,102590.0,102580.0,0.04950965]
[1747315736186,0.93964517,102590.0,102580.0,0.24447942]
[1747315736475,0.94939261,102590.0,102580.0,0.23473103]
[1747315736883,0.94939261,102590.0,102580.0,0.03976126]
[1747315737818,0.94939261,102590.0,102580.0,0.03001278]
[1747315744118,0.93964555,102590.0,102580.0,0.03001278]
[1747315751444,0.93964555,102590.0,102580.0,0.08001278]
[1747315758508,0.92324517,102590.0,102580.0,0.08001278]
[1747315758706,0.93299261,102590.0,102580.0,0.08001278]
[1747315760422,0.94959261,102590.0,102580.0,0.08001278]
[1747315761064,0.94959261,102590.0,102580.0,0.03001278]
[1747315765824,0.94959261,102590.0,102580.0,0.08001278]
[1747315766179,0.94959261,102590.0,102580.0,0.03001278]
[1747315767320,0.95934014,102590.0,102580.0,0.03001278]
[1747315768379,0.94959308,102590.0,102580.0,0.03001278]
[1747315770335,0.25649308,102590.0,102580.0,0.03001278]
[1747315772366,0.23989308,102590.0,102580.0,0.03001278]
[1747315775471,0.25549308,102590.0,102580.0,0.03001278]
[1747315783295,0.24574574,102590.0,102580.0,0.03001278]
[1747315792266,0.75122345,102590.0,102580.0,0.006]
[1747315793320,0.75122345,102590.0,102580.0,0.003]
[1747315793561,0.24526626,102580.0,102570.0,0.00014442]
[1747315794405,0.23551806,102580.0,102570.0,0.00014442]
[1747315795325,0.21066977,102580.0,102570.0,0.1961332]
[1747315795523,0.23991379,102580.0,102570.0,0.00114442]
[1747315795676,0.23991379,102580.0,102570.0,0.00214442]
[1747315796074,0.24966227,102580.0,102570.0,0.00214442]
[1747315796512,0.24966227,102580.0,102570.0,0.02164319]
[1747315796674,0.24966227,102580.0,102570.0,0.00214442]
[1747315796881,0.24966227,102580.0,102570.0,0.05214442]
[1747315797083,0.24966227,102580.0,102570.0,0.08391955]
[1747315797399,0.24966227,102580.0,102570.0,0.09366889]
[1747315797856,0.24966227,102580.0,102570.0,0.08391955]
[1747315798059,0.24966227,102580.0,102570.0,0.09366898]
[1747315798436,0.26606227,102580.0,102570.0,0.08391955]
[1747315799767,0.24656654,102580.0,102570.0,0.08391955]
[1747315800067,0.24656654,102580.0,102570.0,0.00214442]
[1747315801122,0.23681778,102580.0,102570.0,0.1971332]
[1747315801343,0.21446569,102580.0,102570.0,0.22638074]
[1747315801559,0.20471749,102580.0,102570.0,0.23612951]
[1747315801781,3.38897552,102600.0,102580.0,0.19496977]
[1747315801993,0.00974763,102580.0,102570.0,0.23928216]
[1747315802209,0.22421303,102580.0,102570.0,0.25878017]
[1747315802430,0.22421417,102580.0,102570.0,0.00214442]
[1747315802683,0.24506626,102580.0,102570.0,0.00214442]
[1747315803128,0.24506626,102580.0,102570.0,0.00114442]
[1747315803337,0.34237566,102580.0,102570.0,0.00114442]
[1747315803593,0.68237566,102580.0,102570.0,0.00114442]
[1747315803834,0.21452863,102550.0,102540.0,0.19504583]
[1747315804046,0.22427987,102550.0,102540.0,0.2048462]
[1747315804325,0.21452806,102550.0,102540.0,0.2048462]
[1747315804550,0.21452806,102550.0,102540.0,0.22434963]
[1747315804779,0.25042997,102550.0,102540.0,0.2243502]
[1747315804988,0.21452806,102550.0,102540.0,0.23410192]
[1747315805227,0.22427911,102550.0,102540.0,0.21959839]
[1747315805461,0.23403026,102550.0,102540.0,0.21484629]
[1747315805715,0.23977978,102550.0,102540.0,0.01004827]
[1747315805927,0.68253841,102550.0,102540.0,0.01004827]
[1747315806145,0.67278726,102550.0,102540.0,0.22459801]
[1747315806365,0.34,102550.0,102540.0,0.23434973]
[1747315806601,0.56427911,102550.0,102540.0,0.22459811]
[1747315806862,0.56427911,102550.0,102540.0,0.2195982]
[1747315807098,0.55452901,102550.0,102540.0,0.00804827]
[1747315807321,0.68433841,102550.0,102540.0,0.00304827]
[1747315807497,0.68433841,102550.0,102540.0,0.00604827]
[1747315808236,0.68433841,102550.0,102540.0,0.00304827]
[1747315808437,0.68433841,102550.0,102540.0,0.00404827]
[1747315808657,0.68433841,102550.0,102540.0,0.00104827]
[1747315808871,0.68433841,102550.0,102540.0,0.00204827]
[1747315809299,0.69408975,102550.0,102540.0,0.01180046]
[1747315809515,0.69408975,102550.0,102540.0,0.00204827]
[1747315809516,0.6843387,102550.0,102540.0,0.00204827]
[1747315809651,0.8713387,102550.0,102540.0,0.00204827]
[1747315810255,0.8713387,102550.0,102540.0,0.22634982]
[1747315810256,0.5595,102550.0,102540.0,0.22634982]
[1747315810455,0.55452844,102550.0,102540.0,0.22634982]
[1747315810677,0.24521128,102560.0,102550.0,0.20477805]
[1747315810882,0.25604014,102570.0,102560.0,0.20475809]
[1747315811081,0.65002772,102580.0,102570.0,0.20473783]
[1747315811278,0.54076357,102580.0,102570.0,0.00974943]
[1747315811575,0.38200977,102580.0,102570.0,0.23691323]
[1747315811823,2.99876993,102600.0,102590.0,0.20469821]
[1747315812015,0.2144655,102580.0,102570.0,0.30204742]
[1747315812223,0.00974858,102570.0,102560.0,0.40246723]
[1747315812380,0.21448613,102570.0,102560.0,0.4122182]
[1747315812587,0.21448613,102570.0,102560.0,0.21450829]
[1747315812792,0.21450714,102560.0,102550.0,0.2145291]
[1747315813032,0.21450714,102560.0,102540.0,0.19504583]
[1747315813033,0.21452825,102550.0,102540.0,0.19504583]
[1747315813243,0.22428006,102550.0,102540.0,4.827e-05]
[1747315813825,0.41132006,102550.0,102540.0,4.827e-05]
[1747315814045,0.4015692,102550.0,102540.0,4.827e-05]
[1747315814233,0.4177692,102550.0,102540.0,4.827e-05]
[1747315814484,0.4335692,102550.0,102540.0,4.827e-05]
[1747315815161,0.4335692,102550.0,102540.0,0.00204827]
[1747315815641,0.42381815,102550.0,102540.0,0.00404827]
[1747315815882,0.4335692,102550.0,102540.0,0.01380056]
[1747315816123,0.21452825,102550.0,102540.0,0.27288963]
[1747315816331,0.76562162,102560.0,102550.0,0.00975134]
[1747315816544,0.58833191,102560.0,102550.0,0.01950258]
[1747315816751,0.57858229,102560.0,102540.0,0.25338524]
[1747315816968,0.57858153,102560.0,102550.0,0.20477815]
[1747315817188,0.56883191,102560.0,102550.0,0.20746619]
[1747315817393,0.5785823,102560.0,102550.0,0.22696858]
[1747315817599,0.5785822,102560.0,102550.0,0.01243938]
[1747315817810,0.23403102,102550.0,102540.0,0.00204827]
[1747315818019,0.23403102,102550.0,102540.0,4.827e-05]
[1747315818020,0.22952939,102550.0,102540.0,4.827e-05]
[1747315818223,0.24492939,102550.0,102540.0,4.827e-05]
[1747315818810,0.23517815,102550.0,102540.0,4.827e-05]
[1747315819409,0.23517815,102550.0,102540.0,0.00304827]
[1747315819780,0.95683695,102550.0,102540.0,0.00304827]
[1747315820076,0.85952755,102550.0,102540.0,0.00304827]
[1747315820317,0.85952755,102550.0,102540.0,0.00504827]
[1747315820801,0.85952755,102550.0,102540.0,0.00304827]
[1747315820967,0.86052755,102550.0,102540.0,4.827e-05]
[1747315821171,0.86152755,102550.0,102540.0,4.827e-05]
[1747315821743,0.86152755,102550.0,102540.0,0.22434992]
[1747315821744,0.65383794,102550.0,102540.0,0.22434992]
[1747315822046,0.002,102550.0,102540.0,0.23410173]
[1747315822894,0.22713862,102550.0,102540.0,4.827e-05]
[1747315823108,0.2155293,102550.0,102540.0,4.827e-05]
[1747315823321,0.2155293,102550.0,102540.0,0.00980056]
[1747315823529,0.001,102550.0,102540.0,0.23510211]
[1747315823735,0.01075058,102550.0,102540.0,0.23510211]
[1747315823944,0.001,102550.0,102540.0,0.23510211]
[1747315824149,0.00975067,102550.0,102540.0,0.33240999]
[1747315824383,0.56425983,102560.0,102550.0,0.21452939]
[1747315824591,0.56425983,102560.0,102550.0,0.22428044]
[1747315824592,0.55450907,102560.0,102550.0,0.22428044]
[1747315824803,0.00975058,102550.0,102540.0,0.30415512]
[1747315825017,0.01950135,102550.0,102540.0,0.22634982]
[1747315825222,0.21538728,102550.0,102540.0,0.00204827]
[1747315825437,0.23102882,102550.0,102540.0,0.2068462]
[1747315825645,0.23102882,102550.0,102540.0,0.00104827]
[1747315826066,0.23102882,102550.0,102540.0,4.827e-05]
[1747315826473,0.24682882,102550.0,102540.0,4.827e-05]
[1747315826979,0.33438736,102550.0,102540.0,4.827e-05]
[1747315827190,0.93934311,102550.0,102540.0,0.00104827]
[1747315827391,1.05119336,102550.0,102540.0,0.00104827]
[1747315827604,0.97327761,102550.0,102540.0,0.00204827]
[1747315827806,0.86142736,102550.0,102540.0,0.00204827]
[1747315828088,0.67438736,102550.0,102540.0,0.00204827]
[1747315828284,0.86142736,102550.0,102540.0,0.00204827]
[1747315828495,0.86142736,102550.0,102540.0,0.00104827]
[1747315828704,0.74256825,102550.0,102540.0,0.20584629]
[1747315828913,0.74256882,102550.0,102540.0,0.00104827]
[1747315829114,0.76441796,102550.0,102540.0,4.827e-05]
[1747315829547,0.86272736,102550.0,102540.0,4.827e-05]
[1747315831589,0.73381739,102550.0,102540.0,0.2145982]
[1747315831773,0.56627968,102550.0,102540.0,0.1950941]
[1747315831984,0.55652901,102550.0,102540.0,4.827e-05]
[1747315832113,0.54677805,102550.0,102540.0,4.827e-05]
[1747315832315,0.57897805,102550.0,102540.0,4.827e-05]
[1747315832539,0.57797805,102550.0,102540.0,4.827e-05]
[1747315832950,0.57797805,102550.0,102540.0,0.00104827]
[1747315833150,0.56207805,102550.0,102540.0,0.00104827]
[1747315833350,0.53502681,102550.0,102540.0,0.1960941]
[1747315833551,0.56427959,102550.0,102540.0,0.1960941]
[1747315833753,0.57403093,102550.0,102540.0,0.21659849]
[1747315834159,0.56427959,102550.0,102540.0,0.22635049]
[1747315834378,0.57403093,102550.0,102540.0,0.22635049]
[1747315834547,0.57403093,102550.0,102540.0,0.20684639]
[1747315834871,0.55452882,102550.0,102540.0,0.20684629]
[1747315835072,0.56428016,102550.0,102540.0,0.01180056]
[1747315835304,0.56428016,102550.0,102540.0,0.00204827]
[1747315835705,0.5867293,102550.0,102540.0,0.00204827]
[1747315835910,0.9698953,102550.0,102540.0,0.00204827]
[1747315836115,1.0672047,102550.0,102540.0,0.00204827]
[1747315836927,0.89197955,102550.0,102540.0,0.00204827]
[1747315837123,0.8774387,102550.0,102540.0,0.00104827]
[1747315837302,0.8784387,102550.0,102540.0,0.00104827]
[1747315837504,0.8784387,102550.0,102540.0,4.827e-05]
[1747315838036,0.8794387,102550.0,102540.0,4.827e-05]
[1747315838415,0.6860387,102550.0,102540.0,4.827e-05]
[1747315838615,0.8619987,102550.0,102540.0,4.827e-05]
[1747315838817,0.85224755,102550.0,102540.0,4.827e-05]
[1747315839022,0.83644755,102550.0,102540.0,4.827e-05]
[1747315839627,0.85264755,102550.0,102540.0,4.827e-05]
[1747315840709,0.83644755,102550.0,102540.0,4.827e-05]
[1747315840907,0.85174755,102550.0,102540.0,4.827e-05]
[1747315841315,0.53702681,102550.0,102540.0,0.1950941]
[1747315841516,0.002,102550.0,102540.0,0.22434982]
[1747315841895,0.002,102550.0,102540.0,0.25664982]
[1747315842541,0.001,102550.0,102540.0,0.25664982]
[1747315842948,0.001,102550.0,102540.0,0.54879922]
[1747315843199,0.001,102550.0,102540.0,0.77818912]
[1747315843407,0.001,102550.0,102540.0,1.14372997]
[1747315843618,0.001,102550.0,102540.0,1.14272997]
[1747315843796,0.23396196,102580.0,102570.0,0.20473802]
[1747315844028,0.23396196,102580.0,102570.0,0.21448717]
[1747315844236,0.19498878,102570.0,102560.0,0.20474131]
[1747315844461,0.21448727,102570.0,102560.0,0.1950078]
[1747315844661,0.21448727,102570.0,102560.0,0.2047579]
[1747315844983,0.00974972,102560.0,102550.0,0.64104948]
[1747315845185,0.23400782,102560.0,102540.0,0.65079773]
[1747315845386,0.2242793,102550.0,102540.0,0.70114751]
[1747315845591,0.22427902,102550.0,102540.0,0.70889932]
[1747315845792,0.00975048,102550.0,102540.0,0.62134164]
[1747315846004,0.00975048,102550.0,102540.0,0.63109326]
[1747315846204,0.01950115,102550.0,102540.0,0.63109326]
[1747315846553,0.21452825,102550.0,102540.0,0.21559839]
[1747315846692,0.2242794,102550.0,102540.0,0.2253502]
[1747315846895,0.2242794,102550.0,102540.0,0.2253503]
[1747315847096,0.2242794,102550.0,102540.0,0.2313503]
[1747315847295,0.2242794,102550.0,102540.0,0.24110211]
[1747315847516,0.01950135,102550.0,102540.0,0.25085316]
[1747315847721,0.34974858,102570.0,102560.0,0.20475819]
[1747315847928,0.57971414,102580.0,102570.0,0.20473802]
[1747315848144,0.21448622,102570.0,102560.0,0.21450809]
[1747315848354,0.22423527,102570.0,102560.0,0.23400762]
[1747315848559,0.55446642,102580.0,102570.0,0.21448717]
[1747315848769,0.01949782,102570.0,102560.0,0.21450733]
[1747315848986,0.2144866,102570.0,102560.0,0.21450733]
[1747315849192,0.20473783,102570.0,102560.0,0.20675761]
[1747315849397,0.22423594,102570.0,102560.0,0.20675819]
[1747315849610,0.23403026,102550.0,102540.0,0.03804827]
[1747315849810,0.21452844,102550.0,102540.0,0.21184639]
[1747315849962,0.21452901,102550.0,102540.0,0.00704827]
[1747315850166,0.23022901,102550.0,102540.0,0.00704827]
[1747315850368,0.24572901,102550.0,102540.0,0.00104827]
[1747315850775,0.24572901,102550.0,102540.0,0.00304827]
[1747315851196,0.58572901,102550.0,102540.0,0.00604827]
[1747315851636,0.68303841,102550.0,102540.0,0.00604827]
[1747315851794,0.96797294,102550.0,102540.0,0.00604827]
[1747315852222,1.16325294,102550.0,102540.0,0.00604827]
[1747315852789,1.16325294,102550.0,102540.0,0.00404827]
[1747315853507,1.16325294,102550.0,102540.0,0.00104827]
[1747315853692,1.16425294,102550.0,102540.0,0.00104827]
[1747315853898,0.25093878,102540.0,102530.0,0.1]
[1747315854073,0.41756629,102540.0,102530.0,0.10004828]
[1747315855948,0.41756629,102540.0,102530.0,0.10104828]
[1747315856497,0.41756629,102540.0,102530.0,0.10004828]
[1747315856702,0.41856629,102540.0,102530.0,0.10004828]
[1747315857059,0.60053244,102520.0,102510.0,0.00101145]
[1747315857207,0.89016184,102520.0,102510.0,0.00110523]
[1747315858436,0.89016184,102520.0,102510.0,0.00410523]
[1747315859036,0.89016184,102520.0,102510.0,0.00710523]
[1747315859677,0.87562099,102520.0,102510.0,0.00710523]
[1747315859916,0.55459159,102520.0,102510.0,0.21196328]
[1747315860156,0.55459159,102520.0,102510.0,0.20896309]
[1747315860348,0.21118,102540.0,102520.0,0.20483731]
[1747315860565,0.00975257,102530.0,102520.0,0.21459121]
[1747315860767,0.21457018,102530.0,102520.0,0.21459178]
[1747315860968,0.41938578,102540.0,102530.0,0.20481799]
[1747315861103,0.42913797,102540.0,102530.0,0.19506485]
[1747315861307,0.20481723,102530.0,102520.0,0.2456914]
[1747315861505,0.01950495,102530.0,102520.0,0.25544492]
[1747315861710,0.40378681,102550.0,102520.0,0.25544492]
[1747315861711,0.001,102550.0,102540.0,0.20479793]
[1747315861934,0.01075048,102550.0,102540.0,0.22430146]
[1747315862138,0.22527902,102550.0,102540.0,0.20479793]
[1747315862337,0.20481742,102530.0,102520.0,0.48963328]
[1747315862537,0.23407637,102530.0,102520.0,0.002]
[1747315862742,0.23407637,102530.0,102520.0,0.003]
[1747315862970,0.22432313,102530.0,102520.0,0.20783788]
[1747315863105,0.22432313,102530.0,102520.0,0.21459178]
[1747315863315,0.22432313,102530.0,102520.0,0.20483797]
[1747315863515,0.22432361,102530.0,102520.0,0.20483788]
[1747315863869,0.21457056,102530.0,102520.0,0.21459197]
[1747315864170,0.21457056,102530.0,102520.0,0.22434578]
[1747315864403,0.21457056,102530.0,102520.0,0.21959197]
[1747315864623,0.39126681,102550.0,102530.0,0.22432285]
[1747315864837,0.5652794,102550.0,102540.0,0.21455031]
[1747315865007,0.57503074,102550.0,102540.0,0.00975229]
[1747315865169,0.21552882,102550.0,102540.0,0.21455012]
[1747315865375,0.21552882,102550.0,102540.0,0.20479812]
[1747315865568,0.00975162,102540.0,102530.0,0.2145699]
[1747315865771,0.23405336,102540.0,102530.0,0.00975324]
[1747315866025,0.22432352,102530.0,102520.0,0.41579197]
[1747315866323,0.20479802,102540.0,102530.0,0.19506485]
[1747315866746,0.00975162,102540.0,102530.0,0.21757104]
[1747315866910,0.21552882,102550.0,102540.0,0.19504583]
[1747315867117,0.001,102550.0,102540.0,0.22430155]
[1747315867332,0.001,102550.0,102540.0,0.25690155]
[1747315867546,0.001,102550.0,102540.0,0.35421095]
[1747315868817,0.001,102550.0,102540.0,0.35521095]
[1747315869228,0.001,102550.0,102540.0,0.36411203]
[1747315869428,0.001,102550.0,102540.0,0.71865288]
[1747315869659,0.001,102550.0,102540.0,0.72165288]
[1747315870263,0.001,102550.0,102540.0,0.71965288]
[1747315870464,0.001,102550.0,102540.0,1.12965288]
[1747315870671,0.001,102550.0,102540.0,1.11965288]
[1747315870837,0.001,102550.0,102540.0,1.12465288]
[1747315871263,0.001,102550.0,102540.0,0.4898694]
[1747315871486,0.001,102550.0,102540.0,0.71417095]
[1747315871701,0.001,102550.0,102540.0,0.71717095]
[1747315871916,0.001,102550.0,102540.0,0.72703882]
[1747315872161,0.001,102550.0,102540.0,0.52967882]
[1747315872371,0.001,102550.0,102540.0,0.98719882]
[1747315872583,0.001,102550.0,102540.0,0.59447882]
[1747315872795,0.08791575,102590.0,102580.0,0.22421408]
[1747315873023,0.09791575,102590.0,102580.0,0.22421408]
[1747315873504,0.43791575,102590.0,102580.0,0.22421408]
[1747315873733,0.64261329,102590.0,102580.0,0.20471816]
[1747315873935,0.65236016,102590.0,102580.0,0.22421427]
[1747315874188,0.67185437,102590.0,102580.0,0.21446636]
[1747315874390,0.66210712,102590.0,102580.0,0.22421437]
[1747315874731,0.65210712,102590.0,102580.0,0.22421437]
[1747315874908,0.66210712,102590.0,102580.0,0.23396228]
[1747315875123,0.66210712,102590.0,102580.0,0.22421437]
[1747315875348,0.67185427,102590.0,102580.0,0.22421437]
[1747315875562,0.67485427,102590.0,102580.0,0.22421446]
[1747315876023,0.20471749,102580.0,102570.0,0.40967004]
[1747315876508,0.58619223,102590.0,102580.0,0.21446645]
[1747315876749,0.00974763,102580.0,102570.0,0.41941843]
[1747315876989,0.2047174,102580.0,102570.0,0.40966985]
[1747315877221,0.58419223,102590.0,102580.0,0.00974839]
[1747315877445,0.58419223,102590.0,102570.0,0.41941852]
[1747315877446,0.19496977,102580.0,102570.0,0.40966985]
[1747315877665,0.00974763,102580.0,102570.0,0.40966985]
[1747315877883,0.00974763,102580.0,102570.0,0.41941852]
[1747315878115,0.57444479,102590.0,102580.0,0.20471806]
[1747315878344,0.59393957,102590.0,102580.0,0.20471816]
[1747315878607,0.00974763,102580.0,102570.0,0.42041805]
[1747315878826,0.59393938,102590.0,102580.0,0.21446636]
[1747315879054,0.59393938,102590.0,102580.0,0.21446645]
[1747315879277,0.60468691,102590.0,102580.0,0.22421465]
[1747315879491,0.59493938,102590.0,102580.0,0.22421465]
[1747315879710,0.60468691,102590.0,102580.0,0.21446645]
[1747315879978,0.351,102590.0,102580.0,0.23396275]
[1747315880255,0.351,102590.0,102580.0,0.82957997]
[1747315880256,0.001,102590.0,102580.0,0.82957997]
[1747315880506,0.345,102590.0,102580.0,0.82957997]
[1747315881234,0.341,102590.0,102580.0,0.82957997]
[1747315881724,0.34,102590.0,102580.0,0.82957997]
[1747315882214,0.34,102590.0,102580.0,0.83057997]
[1747315882465,0.342,102590.0,102580.0,1.02435997]
[1747315882918,0.34,102590.0,102580.0,0.99785997]
[1747315883143,0.35974668,102590.0,102580.0,0.90159057]
[1747315883383,0.35,102590.0,102580.0,0.89184237]
[1747315883625,0.34,102590.0,102580.0,0.98915177]
[1747315883857,0.34,102590.0,102580.0,1.01985177]
[1747315885783,0.34,102590.0,102580.0,0.98915177]
[1747315886007,0.34,102590.0,102580.0,0.99003177]
[1747315886440,0.34,102590.0,102580.0,0.79139177]
[1747315886671,0.34,102590.0,102580.0,0.98999177]
[1747315887348,0.34,102590.0,102580.0,0.72999177]
[1747315887576,0.34,102590.0,102580.0,0.76099177]
[1747315890639,0.34,102590.0,102580.0,0.77553262]
[1747315890863,2.80383816,102600.0,102590.0,0.25579223]
[1747315891079,2.80383816,102600.0,102590.0,0.35310163]
[1747315891329,2.80383816,102600.0,102590.0,0.61310163]
[1747315891531,0.75917221,102580.0,102570.0,0.21446985]
[1747315891767,0.75917221,102580.0,102570.0,0.70541925]
[1747315892887,0.75917221,102580.0,102570.0,0.70641925]
[1747315893546,0.75917221,102580.0,102570.0,0.7239601]
[1747315893989,0.75917221,102580.0,102570.0,0.7279601]
[1747315894650,0.75917221,102580.0,102570.0,0.7291601]
[1747315894890,2.80383816,102600.0,102590.0,0.23873308]
[1747315895107,2.80383816,102600.0,102590.0,0.73336248]
[1747315895108,1.51063096,102600.0,102590.0,0.73336248]
[1747315895579,1.50113096,102600.0,102590.0,1.37336248]
[1747315895815,1.45433343,102600.0,102590.0,1.37336248]
[1747315896231,1.43033343,102600.0,102590.0,1.37536248]
[1747315896433,1.43033343,102600.0,102590.0,1.37336248]
[1747315896648,1.40123343,102600.0,102590.0,1.37336248]
[1747315896867,1.40123343,102600.0,102590.0,1.37936248]
[1747315897078,1.40123343,102600.0,102590.0,1.38536248]
[1747315897305,1.31123343,102600.0,102590.0,1.38536248]
[1747315897787,0.66767892,102600.0,102590.0,1.38536248]
[1747315898004,0.07267465,102630.0,102620.0,0.23866754]
[1747315898227,0.07315693,102630.0,102620.0,1.15397694]
[1747315898885,0.07315693,102630.0,102620.0,1.16873413]
[1747315899768,0.07315693,102630.0,102620.0,1.17073413]
[1747315899990,0.00048228,102630.0,102620.0,1.47073413]
[1747315900206,0.00048228,102630.0,102620.0,1.47373413]
[1747315901084,0.00048228,102630.0,102620.0,1.81373413]
[1747315902190,0.00039357,102630.0,102620.0,1.81373413]
[1747315902812,0.00039357,102630.0,102620.0,1.81557413]
[1747315905704,0.00039357,102630.0,102620.0,1.41653413]
[1747315905935,0.00039357,102630.0,102620.0,1.10199328]
[1747315906140,0.00039357,102630.0,102620.0,1.50091328]
[1747315906358,0.03119357,102630.0,102620.0,0.96031328]
[1747315906574,0.03119357,102630.0,102620.0,1.14627609]
[1747315906982,0.03119357,102630.0,102620.0,0.72547609]
[1747315906983,0.04093655,102630.0,102620.0,0.72547609]
[1747315907218,0.12859556,102630.0,102620.0,0.32643609]
[1747315907430,0.1188523,102630.0,102620.0,0.22912669]
[1747315907628,0.1188522,102630.0,102620.0,0.22912669]
[1747315907858,0.1188522,102630.0,102620.0,0.002]
[1747315907859,0.31372699,102630.0,102620.0,0.002]
[1747315908063,0.68347091,102630.0,102620.0,0.002]
[1747315908479,0.00974668,102590.0,102580.0,0.20470031]
[1747315908687,0.03924431,102580.0,102570.0,0.001]
[1747315908897,1.15549988,102580.0,102570.0,0.001]
[1747315909122,1.18619988,102580.0,102570.0,0.001]
[1747315909344,1.28350928,102580.0,102570.0,0.001]
[1747315909545,1.27350928,102580.0,102570.0,0.001]
[1747315909776,1.05904292,102580.0,102570.0,0.22532465]
[1747315909989,0.0307,102580.0,102570.0,0.22532465]
[1747315910495,0.0307,102580.0,102570.0,0.32263405]
[1747315911340,0.50447638,102610.0,102570.0,0.52099405]
[1747315911341,0.01,102610.0,102570.0,0.52099405]
[1747315911558,0.48839401,102620.0,102610.0,0.22414853]
[1747315911817,1.04277687,102620.0,102610.0,0.21440366]
[1747315912047,0.0305,102620.0,102610.0,0.21440261]
[1747315912693,0.05598823,102620.0,102610.0,0.21449132]
[1747315912911,0.53438252,102620.0,102610.0,0.21449132]
[1747315913128,0.53438243,102620.0,102610.0,0.22423724]
[1747315913328,0.54412692,102620.0,102610.0,0.22423733]
[1747315913539,0.52463803,102620.0,102610.0,0.2339823]
[1747315913762,0.53438243,102620.0,102610.0,0.2339823]
[1747315913967,0.53638243,102620.0,102610.0,0.2339823]
[1747315914172,0.0385,102620.0,102610.0,0.2339823]
[1747315914638,0.0385,102620.0,102610.0,0.3312917]
[1747315914866,0.0385,102620.0,102610.0,0.7328117]
[1747315915557,0.008,102620.0,102610.0,0.7328117]
[1747315915778,0.008,102620.0,102610.0,0.74735255]
[1747315916199,0.006,102620.0,102610.0,0.74735255]
[1747315916409,0.001,102630.0,102620.0,0.22412669]
[1747315916621,0.0327,102630.0,102620.0,0.32143609]
[1747315917102,0.001,102630.0,102620.0,0.33597694]
[1747315917322,0.001,102630.0,102620.0,0.67597694]
[1747315918573,0.007,102630.0,102620.0,0.67597694]
[1747315918841,0.001,102630.0,102620.0,0.67597694]
[1747315919254,0.004,102630.0,102620.0,0.67597694]
[1747315919674,0.003,102630.0,102620.0,0.67597694]
[1747315919830,0.001,102630.0,102620.0,0.67597694]
[1747315920051,0.002,102630.0,102620.0,0.97597694]
[1747315920265,0.003,102630.0,102620.0,0.97597694]
[1747315920481,0.002,102630.0,102620.0,0.97597694]
[1747315920907,0.002,102630.0,102620.0,0.97797694]
[1747315921123,0.002,102630.0,102620.0,0.98297694]
[1747315921371,0.002,102630.0,102620.0,1.00920734]
[1747315921514,0.001,102630.0,102620.0,1.00920734]
[1747315921714,0.001,102630.0,102620.0,1.01020734]
[1747315921943,0.001,102630.0,102620.0,0.98397694]
[1747315922215,0.001,102630.0,102620.0,1.38565694]
[1747315922855,0.001,102630.0,102620.0,1.39065694]
[1747315923033,0.001,102630.0,102620.0,1.4168784]
[1747315923265,0.001,102630.0,102620.0,1.0131984]
[1747315923487,0.001,102630.0,102620.0,1.4215184]
[1747315923704,0.001,102630.0,102620.0,1.39529694]
[1747315924133,0.001,102630.0,102620.0,0.98697694]
[1747315924351,0.001,102630.0,102620.0,1.39541694]
[1747315925623,0.001,102630.0,102620.0,0.34197694]
[1747315925810,0.033,102630.0,102620.0,0.73671609]
[1747315926035,0.033,102630.0,102620.0,1.07671609]
[1747315926234,0.033,102630.0,102620.0,0.3011094]
[1747315926386,0.033,102630.0,102620.0,0.52523609]
[1747315927253,0.033,102630.0,102620.0,0.52723609]
[1747315927798,0.033,102630.0,102620.0,0.52523609]
[1747315929194,0.037,102630.0,102620.0,0.52523609]
[1747315929458,0.87513622,102630.0,102620.0,0.22412669]
[1747315929672,0.385,102630.0,102620.0,0.22412669]
[1747315929919,0.035,102630.0,102620.0,0.32143609]
[1747315930136,0.005,102630.0,102620.0,0.33597694]
[1747315930579,0.005,102630.0,102620.0,0.75661694]
[1747315930829,0.005,102630.0,102620.0,1.09661694]
[1747315931061,0.001,102630.0,102620.0,1.09661694]
[1747315931301,0.004,102630.0,102620.0,1.09661694]
[1747315931538,0.001,102630.0,102620.0,1.16693694]
[1747315931754,0.001,102630.0,102620.0,1.16893694]
[1747315931974,0.0334,102630.0,102620.0,0.75861694]
[1747315932187,0.0334,102630.0,102620.0,1.16901694]
[1747315932409,0.0334,102630.0,102620.0,1.17001694]
[1747315932822,0.0334,102630.0,102620.0,1.16893694]
[1747315933204,0.0334,102630.0,102620.0,1.17193694]
[1747315933586,0.001,102630.0,102620.0,1.16893694]
[1747315933981,0.001,102630.0,102620.0,1.16993694]
[1747315934180,0.0165,102630.0,102620.0,1.16997694]
[1747315934386,0.033,102630.0,102620.0,1.16797694]